Cogmind - Beta 16 @@@ ROGUE MODE // 2026.01.01 @ 00:06:22 Player: AngelSpirit Result: Destroyed by Y-64 Sentinel with KE Penetrator Performance ------------- Evolutions (5) 2500 Regions Visited (19) 3800 Robots Destroyed (303) 1515 Value Destroyed (12211) 12211 Prototype IDs (58) 1160 Alien Tech Used (0) 0 Bonus (6919) 6919 TOTAL SCORE: 28105 Bonus ------- High Alert Combat Kills 2270 Follower Combat Kills 2943 Network Hubs Disabled 400 Met Imprinter 300 Was Imprinted 300 Built Enhanced Grunts 300 A7 Reached Mainframe 300 Met R17 at Cetus 500 Friendly Fire -394 Cogmind --------- Core Integrity 0/1000 Matter 255/300 Energy 89/100 System Corruption 24% Temperature Hot (205) Movement Core (150) Ox2 Location -5/Hub_04(d) Parts ------- > --- POWER (1) -------- (None) > --- PROPULSION (6) --- (None) > --- UTILITY (7) ------ Layered Medium Armor Plating Graphene Brace Improved Hacking Suite > --- WEAPON (3) ------- (None) > --- INVENTORY (5) ---- Advanced Sensor Array Improved Hacking Suite Cooled Pulse Rifle Long-range Missile Launcher Peak State ------------ > --- POWER ------------ DM-Quantum Reactor > --- PROPULSION ------- Treaded Centrium Exoskeleton > --- UTILITY ---------- Armored Scrap Engine Improved Cooling System High-capacity Storage Unit Advanced Energy Well Improved Medium Armor Plating Centrium Medium Armor Plating > --- WEAPON ----------- Directed Pulse Construct/G > --- INVENTORY -------- Matter Compressor Advanced Sensor Array Advanced Sensor Array Precision Energy Filter Centrium Medium Armor Plating Damper Plating Graphene Brace Authchip [Device] Advanced System Restoration Module Heavy Flak Cannon Long-range Missile Launcher Improved Plasma Cutter RU-N14's Throwing Claymores RU-N14's Throwing Claymores RU-N14's Throwing Claymores Falx CR-A16's Pointy Stick [Rating: 121] Favorites ----------- Power Constructs Engine Ion Engine Power Core Light Nuclear Core Reactor Constructs Propulsion Constructs Treads Constructs Wheel Armored Wheel Hover Unit Aerolev Unit Flight Unit Improved VTOL Module Utility High-capacity Storage Unit Device Armored Scrap Engine Storage High-capacity Storage Unit Processor Advanced Signal Interpreter Hackware Hacking Suite Protection Gun Armor Weapon Constructs Energy Gun Constructs Energy Cannon Beam Cannon Ballistic Gun Subdweller Machine Gun Ballistic Cannon Flak Cannon Launcher Subdweller Shrapnel Launcher Special Weapon Multitool Impact Weapon Great Maul Slashing Weapon Power Sword Build | -11 -10 -10 -8 -8 -8 -6 -6 -6 -6 -6 -6 -5 -5 -5 -5 -5 -5 -5 -5 ------- Run | Yrd Mat Sub Mat Sto Rec Fac Was Fac Low Low Zio Pro Fac Was Fac Ext Cet Arc Hub Slots Evolved 10 | . . . 4 . . 4 . . . . . . 2 . . . . . . Power . | . . . . . . . . . . . . . . . . . . . . Propulsion 4 | . . . 1 . . 2 . . . . . . 1 . . . . . . Utility 5 | . . . 2 . . 2 . . . . . . 1 . . . . . . Weapon 1 | . . . 1 . . . . . . . . . . . . . . . . Parts Attached 148 | 6 20 16 20 23 2 6 1 8 . . 1 . 6 1 11 12 1 3 11 Power 16 | 1 3 3 2 5 . 1 . . . . . . . . 1 . . . . Engine 10 | 1 1 3 1 3 . . . . . . . . . . 1 . . . . Core 6 | . 2 . 1 2 . 1 . . . . . . . . . . . . . Reactor . | . . . . . . . . . . . . . . . . . . . . Propulsion 23 | 2 8 4 4 5 . . . . . . . . . . . . . . . Treads . | . . . . . . . . . . . . . . . . . . . . Leg . | . . . . . . . . . . . . . . . . . . . . Wheel 17 | 2 7 4 3 1 . . . . . . . . . . . . . . . Hover 4 | . . . . 4 . . . . . . . . . . . . . . . Flight 2 | . 1 . 1 . . . . . . . . . . . . . . . . Utility 67 | 1 7 2 5 5 1 5 1 2 . . . . 6 1 10 12 1 3 5 Device 22 | . 3 . . 3 1 . . . . . . . 2 . 5 4 . 2 2 Storage 7 | 1 1 . 2 1 . . . . . . . . 1 . . . . 1 . Processor 2 | . . . . . . . . 1 . . . . . . 1 . . . . Hackware 10 | . . . 2 . . 2 . . . . . . 2 . 3 . . . 1 Protection 26 | . 3 2 1 1 . 3 1 1 . . . . 1 1 1 8 1 . 2 Artifact . | . . . . . . . . . . . . . . . . . . . . Weapon 42 | 2 2 7 9 8 1 . . 6 . . 1 . . . . . . . 6 Energy Gun 12 | . . . 4 2 . . . 3 . . . . . . . . . . 3 Energy Cannon 6 | . 2 1 1 1 . . . 1 . . . . . . . . . . . Ballistic Gun 11 | 2 . 3 4 1 . . . 1 . . . . . . . . . . . Ballistic Cannon 3 | . . . . 3 . . . . . . . . . . . . . . . Launcher 3 | . . 2 . . . . . . . . . . . . . . . . 1 Special Weapon 4 | . . 1 . . . . . . . . 1 . . . . . . . 2 Impact Weapon 2 | . . . . 1 1 . . . . . . . . . . . . . . Slashing Weapon 1 | . . . . . . . . 1 . . . . . . . . . . . Piercing Weapon . | . . . . . . . . . . . . . . . . . . . . Special Melee Weapon . | . . . . . . . . . . . . . . . . . . . . Unidentified Prototypes 26 | . 1 . 5 6 1 . . 5 . . 1 . 2 . 1 1 1 1 1 Corrupted Parts 2 | . . . . . . . . . . . . . . . 2 . . . . System Corruption 7 | . . . . . . . . . . . . . . . 7 . . . . Parts Lost 25 | . 2 1 . 3 . 3 1 2 . 1 . . . . 2 2 . . 8 Power 6 | . . 1 . 1 . 2 . . . 1 . . . . 1 . . . . Propulsion 4 | . 2 . . 2 . . . . . . . . . . . . . . . Utility 12 | . . . . . . 1 . 2 . . . . . . 1 2 . . 6 Weapon 3 | . . . . . . . 1 . . . . . . . . . . . 2 Highest Loss Streak 6 | . 1 1 . 2 . 2 1 1 . 1 . . . . 1 1 . . 6 To Critical Strikes . | . . . . . . . . . . . . . . . . . . . . Average Backups 15 | . 8 9 11 17 19 17 16 16 14 12 15 17 16 16 16 17 17 16 15 Power . | . 1 1 . 1 . . . . 1 1 1 1 . . . . . . . Propulsion 1 | . 2 3 1 5 4 3 2 . . . . . . . . . . . . Utility 8 | . 2 3 5 7 10 10 11 11 9 9 10 10 10 9 8 8 8 9 10 Weapon 4 | . 1 1 3 2 3 2 2 3 4 2 4 6 6 7 7 8 7 6 4 Tool/Special . | . . . . . . . . . . . . . . . . . . . . Unused Backups 42 | . 5 3 1 7 2 4 . 2 3 1 1 . 3 . 4 . . 2 4 Power 7 | . 2 1 . 3 . . . . . . . . 1 . . . . . . Propulsion 6 | . 3 . . 1 1 1 . . . . . . . . . . . . . Utility 16 | . . 1 . 2 1 3 . 1 . . . . 2 . 3 . . . 3 Weapon 12 | . . 1 1 1 . . . 1 3 1 1 . . . 1 . . 1 1 Tool/Special 1 | . . . . . . . . . . . . . . . . . . 1 . Average Slot Usage (%) 66 | . 98 99 98 98 80 52 52 55 53 52 54 53 51 37 49 51 52 51 49 Engine 4 | . 9 13 3 3 8 2 3 . . 2 6 6 . . 1 . . . . Core 2 | . 4 . 5 4 . 2 2 4 . 3 . . 4 5 3 3 1 . . Treads 1 | . . . . . . . . . . 3 6 6 1 . . 2 5 1 2 Leg 1 | . . . . . 2 4 4 4 . . . . . . . . . 3 2 Wheel 8 | . 27 28 27 26 18 1 . . . . . . . . . . . . . Device 9 | . 6 . . 7 9 5 5 6 13 13 13 13 10 6 12 14 17 18 18 Storage 7 | . 14 14 9 9 9 5 5 6 6 6 6 6 5 5 5 5 5 5 4 Processor 1 | . . . . . . . . . 6 6 6 6 5 . 4 . . . . Hackware 3 | . . . 15 9 3 12 5 4 . . . . 1 . 4 1 . . . Protection 8 | . 6 13 11 9 9 5 10 13 6 6 6 6 8 5 2 10 11 9 4 Energy Gun 1 | . . . 9 3 1 . 3 . . . . . . . . . . . 3 Energy Cannon 3 | . 14 6 1 . . 2 3 1 4 1 6 1 . . 3 3 3 . 1 Ballistic Gun 3 | . 13 13 11 7 . . . 2 . . . . . . . . . . . Ballistic Cannon 3 | . . . . 15 12 3 1 1 1 4 . 4 5 5 1 1 1 5 2 Peak Build Rating 121 | 6 12 14 33 39 51 82 87 92 84 82 86 87 108 108 114 115 117 121 120 Average Rating 68 | 4 9 12 28 32 40 62 79 82 82 79 82 85 97 102 107 106 111 116 110 On Entrance 68 | . 6 10 14 31 34 44 82 79 84 82 79 82 87 108 104 114 99 117 114 Avg Prop Armor Cover (%) 4 | . . . . . 4 . . . . . . . . . . . . . . Naked Turns . | . . . . . . . . . . . . . . . . . . . . Heaviest Build 114 | 12 23 34 48 71 71 76 76 79 63 62 69 76 79 114 77 95 86 86 113 Greatest Support 267 | 32 32 32 42 43 51 85 82 82 67 101 101 101 164 164 164 210 237 237 267 Greatest Overweight (x) 4 | . 1 2 1 2 4 1 . 1 1 . . . . . . . . . 2 Average Overweight (x) . | . . . . . 1 . . . . . . . . . . . . . . Largest Inventory Capacity 20 | 8 10 10 15 20 20 20 20 20 20 20 20 20 20 20 20 20 20 20 20 Average Capacity 18 | 6 9 10 13 18 20 20 20 20 20 20 20 20 20 20 20 20 20 20 19 Most Carried 20 | 1 10 10 15 20 20 20 20 20 19 16 20 20 20 20 20 20 20 20 20 Average Carried 16 | . 8 9 11 17 19 17 16 19 17 15 18 20 19 17 19 20 19 19 17 Final Capacity 20 | 8 10 10 15 20 20 20 20 20 20 20 20 20 20 20 20 20 20 20 5 Final Carried 20 | 1 10 10 14 19 20 17 20 20 16 16 20 20 20 18 20 20 20 20 4 Scrap Engine Consumption 277 | . . . . . 35 37 28 40 8 9 2 7 9 2 29 37 16 3 15 Constructs Created 12 | . . . . . 3 2 3 1 . 1 . . . . 1 . . . 1 Constructs Modified 106 | . . . . . 10 10 11 14 4 4 1 2 4 . 14 17 8 2 5 Class Distribution -------------------- 45% | Construct 11% | Commander-Construct 10% | Mutant 9% | Scavenger-Construct 5% | Commander-Tank 4% | Hacker-Construct 3% | Hacker-Tank 3% | Tank 3% | Scavenger-Mutant Dominant Class ---------------- Mutant | -10/Materials Mutant | -10/Subcaves Hacker-Tank | -8/Materials Tank | -8/Storage Commander-Construct | -8/Recycling Hacker-Construct | -6/Factory Construct | -6/Waste Construct | -6/Factory Construct | -6/Lower Caves Construct | -6/Lower Caves Construct | -6/Zion Construct | -5/Proximity Caves Construct | -5/Factory Construct | -5/Waste Construct | -5/Factory Scavenger-Construct | -5/Extension Scavenger-Construct | -5/Cetus Scavenger-Construct | -5/Archives Scavenger-Construct | -5/Hub_04(d) Resources | -11 -10 -10 -8 -8 -8 -6 -6 -6 -6 -6 -6 -5 -5 -5 -5 -5 -5 -5 -5 ----------- Run | Yrd Mat Sub Mat Sto Rec Fac Was Fac Low Low Zio Pro Fac Was Fac Ext Cet Arc Hub Matter Collected 6585 | 233 806 310 867 1049 247 1016 484 359 . . 20 . 70 10 214 213 175 175 337 Remotely . | . . . . . . . . . . . . . . . . . . . . Salvage Created 13194 | . 743 292 851 1089 380 1420 . 1511 50 259 . 190 1179 . 2016 2283 216 189 526 Parts 679 | . 51 19 60 58 16 59 . 84 7 16 . 8 54 . 106 115 9 8 9 Haulers Intercepted 14 | . 2 . 3 6 1 . . . . . . . 2 . . . . . . Recyclers Shooed 10 | . . . 1 1 . 2 . 3 . . . . . . 2 . . . 1 Parts Field Recycled . | . . . . . . . . . . . . . . . . . . . . Retrieved Matter . | . . . . . . . . . . . . . . . . . . . . Parts Self-Destructed 49 | . . 2 . . . . . . 10 14 . 23 . . . . . . . Prevented 2 | . . . . . . . . . 1 . . 1 . . . . . . . Parts Restored . | . . . . . . . . . . . . . . . . . . . . Kills | -11 -10 -10 -8 -8 -8 -6 -6 -6 -6 -6 -6 -5 -5 -5 -5 -5 -5 -5 -5 ------- Run | Yrd Mat Sub Mat Sto Rec Fac Was Fac Low Low Zio Pro Fac Was Fac Ext Cet Arc Hub Combat Hostiles Destroyed 213 | . 15 9 16 18 4 27 . 23 1 4 . 5 11 . 30 29 3 2 16 Guns 27 | . 6 1 7 8 . . . 3 . . . . . . . . . . 2 Cannons 139 | . 9 3 1 8 4 18 . 15 1 4 . 4 8 . 29 29 3 2 1 AOE 40 | . . 5 8 2 . 9 . 4 . . . . . . 1 . . . 11 Classes Destroyed 22 | . 6 2 3 . 2 3 . . . . . . . . 1 4 . . 1 Worker 21 | . 2 . 5 1 . 2 . 6 . . . . 3 . . . . . 2 Builder 6 | . . . . . . 1 . 2 . . . . . . 2 . . . 1 Tunneler 1 | . . . . . . 1 . . . . . . . . . . . . . Hauler 14 | . 2 . 3 6 1 . . . . . . . 2 . . . . . . Recycler 6 | . . . 1 1 1 2 . . . . . . . . 1 . . . . Mechanic 3 | . . . . . . . . . . . . . . . . 2 . . 1 Operator 17 | . 2 . 3 1 . 1 . 1 . . . . 1 . 3 4 . 1 . Watcher 21 | . 3 . 5 1 . 2 . . . . . . 3 . 6 1 . . . Swarmer 43 | . 3 . 7 3 . 6 . . . 4 . 4 . . 12 4 . . . Grunt 71 | . 12 . 1 7 . 9 . 15 . . . . 6 . 7 10 . . 4 Brawler 5 | . . . . . . . . . . . . . . . 1 3 . . 1 Duelist 6 | . . . . . . 1 . . . . . . . . 1 3 . . 1 Protector 2 | . . . . . 1 . . . . . . . . . . . . . 1 Sentry 32 | . . . 7 8 2 2 . 3 . . . . . . 2 4 . 2 2 Demolisher 1 | . . . . . . . . . . . . . . . . 1 . . . Specialist 4 | . . . . . . . . . . . . . . . . 1 . . 3 Hunter 21 | . . . 1 . . 7 . 4 . . . 1 3 . 3 2 . . . Programmer 11 | . . . . . 1 2 . 1 1 . . . 2 . 4 . . . . Heavy 1 | . . . . . . . . . . . . . . . . . . . 1 Behemoth 1 | . . . . . . . . . . . . . . . . 1 . . . Cetus Guard 3 | . . . . . . . . . . . . . . . . . 3 . . Lightning 3 | . . . . . . . . . . . . . . . . . . . 3 Subdweller 9 | . . 9 . . . . . . . . . . . . . . . . . Scientist 1 | . . 1 . . . . . . . . . . . . . . . . . Savage 1 | . . . . . . . . . . . . . . . . 1 . . . Best Kill Streak 11 | . 4 2 11 4 3 7 . 9 1 3 . 3 8 . 9 6 2 2 9 Combat Bots Only 9 | . 4 2 5 4 3 5 . 8 1 3 . 3 4 . 6 6 2 2 9 Max Kills in Single Turn 4 | . 2 2 4 2 3 3 . 3 1 1 . 2 2 . 2 2 1 1 3 Gunslinging . | . . . . . . . . . . . . . . . . . . . . Exploded 4 | . . 2 4 2 . 3 . 2 . . . . . . 1 . . . 1 Melee . | . . . . . . . . . . . . . . . . . . . . Uniques/NPCs Destroyed . | . . . . . . . . . . . . . . . . . . . . Combat | -11 -10 -10 -8 -8 -8 -6 -6 -6 -6 -6 -6 -5 -5 -5 -5 -5 -5 -5 -5 -------- Run | Yrd Mat Sub Mat Sto Rec Fac Was Fac Low Low Zio Pro Fac Was Fac Ext Cet Arc Hub Hostile Shots Fired 1299 | . 61 28 42 57 2 351 3 161 2 44 . 11 15 3 90 94 24 19 292 Missed 388 | . 23 7 9 12 1 139 . 47 1 12 . 2 2 2 39 34 11 7 40 Hits 911 | . 38 21 33 45 1 212 3 114 1 32 . 9 13 1 51 60 13 12 252 Melee 12 | . . . . . . . 3 . . . . . . 1 . 3 . . 5 Projectile 899 | . 38 21 33 45 1 212 . 114 1 32 . 9 13 . 51 57 13 12 247 AOE 1 | . . . . . . . . . . . . . . . . . . . 1 Critical Strikes 46 | . 1 . . . . 4 2 7 . . . . . . 2 3 1 1 25 Actively Blocked 16 | . . . . . . . . . . . . . . . . . . . 16 Part Disruptions 1 | . . . . . . . . . . . . . . . . . . . 1 Damage Taken 18213 | . 435 521 428 666 12 2958 155 1754 15 478 . 220 329 46 1051 1331 288 321 7205 Core 1906 | . 77 113 39 97 . 235 . 237 . 70 . 29 14 . 20 72 81 21 801 Absorbed by Shields 107 | . . . . . . . . . . . . . . . . 45 62 . . Reduced by Siege Mode 752 | . . . . . . . . . . . . . . . . . . . 752 Redirected to Shielding 3 | . 3 . . . . . . . . . . . . . . . . . . Ignored by Resistances 1522 | . . . . . . . . . . . . . . . . . . . 1522 Regen/Repaired (Parts) 5319 | . . . 159 95 5 984 817 616 119 372 . 47 146 . 872 620 170 137 160 Core Remaining (%) 57 | 100 . 24 . . 75 . . . . . . 32 . . . . . . . Volleys Fired 703 | . 69 43 58 54 11 107 1 71 2 20 . 7 22 . 73 88 16 11 50 Largest 3 | . 2 2 3 3 3 2 1 2 1 1 . 1 1 . 1 1 1 1 3 Hottest 231 | . 120 110 138 118 111 171 40 122 36 74 . 157 134 . 134 208 224 231 149 Shots Fired 1015 | . 138 60 137 156 21 112 1 75 2 20 . 7 22 . 73 88 16 11 76 Gun 399 | . 67 30 123 108 . 5 . 16 . . . . . . . . . . 50 Cannon 545 | . 71 17 6 47 15 96 . 53 2 20 . 7 22 . 73 88 16 11 1 Launcher 53 | . . 13 8 1 . 11 1 6 . . . . . . . . . . 13 Special 18 | . . . . . 6 . . . . . . . . . . . . . 12 Kinetic 514 | . 67 43 81 119 15 98 1 46 . 18 . . . . 13 2 9 2 . Thermal 428 | . 71 17 56 37 6 14 . 18 2 2 . 6 . . 60 72 7 9 51 Explosive 25 | . . . . . . . . . . . . . . . . . . . 25 Electromagnetic 34 | . . . . . . . . 11 . . . 1 22 . . . . . . Phasic 14 | . . . . . . . . . . . . . . . . 14 . . . Robot Hit Streak 18 | . 11 12 9 7 7 13 2 15 10 12 . 18 4 . 9 7 6 5 15 Robot Miss Streak 10 | . 7 2 4 10 4 7 . 3 . 6 . 3 6 . 3 5 2 2 4 Penetration Max 2 | . . . . . . . . 2 . . . . . . . 2 . . . Secondary Targets 2 | . . . . 1 . . . . . . . . . . . . . . 1 Max Gunslinging Chain 1 | . . . . 1 . . . . . . . . . . . . . . 1 Shots Hit Robots 650 | . 74 38 81 94 15 67 1 56 2 11 . 7 18 . 49 66 11 8 52 Core Hits 477 | . 31 22 45 72 24 62 3 46 . 6 . 8 15 . 37 36 5 4 61 Critical Kills 8 | . 1 . . . . . . 2 . . . . 4 . 1 . . . . Critical Parts Destroyed 7 | . . . 1 . . . . 2 1 1 . . 1 . 1 . . . . Critical Strikes 18 | . 1 . 2 1 . . . 4 1 1 . . 5 . 2 . . . 1 Burn 2 | . . . 1 1 . . . . . . . . . . . . . . . Destroy 15 | . 1 . 1 . . . . 4 1 1 . . 5 . 2 . . . . Sever 1 | . . . . . . . . . . . . . . . . . . . 1 Melee Attacks 4 | . . . . 2 1 . . . . . 1 . . . . . . . . Impact 3 | . . . . 2 1 . . . . . . . . . . . . . . Slashing 1 | . . . . . . . . . . . 1 . . . . . . . . Piercing . | . . . . . . . . . . . . . . . . . . . . Sneak Attacks . | . . . . . . . . . . . . . . . . . . . . Combat Hostiles . | . . . . . . . . . . . . . . . . . . . . Follow-up Attacks . | . . . . . . . . . . . . . . . . . . . . Damage Inflicted 40750 | . 1205 1694 2271 1871 306 5630 116 3790 108 403 . 444 1574 . 6546 7346 1057 775 5614 Guns 4245 | . 470 308 1320 1009 . 29 . 376 . . . . . . . . . . 733 Cannons 25078 | . 735 266 70 697 276 3295 . 1968 108 403 . 444 1473 . 6165 7346 1057 775 . Explosions 10987 | . . 1120 881 165 . 2306 116 1446 . . . . 101 . 381 . . . 4471 Melee . | . . . . . . . . . . . . . . . . . . . . Ramming 3 | . . . . . . . . . . . . . . . . . . . 3 Kinetic 14879 | . 470 1428 1444 1464 276 5146 116 2542 . 318 . . . . 592 246 684 153 . Thermal 16881 | . 735 266 827 407 30 385 . 476 108 85 . 365 101 . 5573 5795 373 622 733 Explosive 5144 | . . . . . . 99 . 439 . . . . . . 381 . . . 4225 Electromagnetic 2131 | . . . . . . . . 333 . . . 79 1473 . . . . . 246 Impact . | . . . . . . . . . . . . . . . . . . . . Slashing 407 | . . . . . . . . . . . . . . . . . . . 407 Piercing . | . . . . . . . . . . . . . . . . . . . . Phasic 1305 | . . . . . . . . . . . . . . . . 1305 . . . Highest Corruption 24 | . . . . . 1 . . . . . . . 1 1 7 1 1 1 24 Average Corruption 1 | . . . . . 1 . . . . . . . 1 1 1 1 1 1 4 Corruption Purged 9 | . . . . . . . . . . . . . . . 8 . . 1 . Corruption Blocked . | . . . . . . . . . . . . . . . . . . . . Effects 40 | . . . . . 8 . . . . . . . 1 3 5 13 2 3 5 Message Errors 15 | . . . . . 4 . . . . . . . . 2 2 6 1 . . Matter Fused 6 | . . . . . . . . . . . . . . . 2 2 . 2 . Heat Flow Errors 3 | . . . . . . . . . . . . . 1 1 . . . . 1 Energy Discharges 6 | . . . . . 2 . . . . . . . . . . 2 . . 2 Parts Rejected 1 | . . . . . . . . . . . . . . . . . . . 1 Parts Fused 1 | . . . . . . . . . . . . . . . . 1 . . . Data Loss (minor) 6 | . . . . . 2 . . . . . . . . . 1 2 . 1 . Data Loss (major) 1 | . . . . . . . . . . . . . . . . . 1 . . Misdirections 1 | . . . . . . . . . . . . . . . . . . . 1 Overload Shots . | . . . . . . . . . . . . . . . . . . . . Overflow Damage 2799 | . 7 . 83 38 . 292 . 121 31 . . . 198 . 1199 778 . . 52 Projectiles 2439 | . 7 . . . . 204 . 82 31 . . . 132 . 1193 778 . . 12 Explosions 360 | . . . 83 38 . 88 . 39 . . . . 66 . 6 . . . 40 Melee . | . . . . . . . . . . . . . . . . . . . . Knockbacks 53 | . . . . 12 7 18 . 11 . 3 . . . . 2 . . . . Impact . | . . . . . . . . . . . . . . . . . . . . Kinetic 51 | . . . . 12 7 17 . 10 . 3 . . . . 2 . . . . Secondary 2 | . . . . . . 1 . 1 . . . . . . . . . . . Self-Inflicted Damage 486 | . . 57 . . . 26 . . . . . . 79 . 56 . . . 268 Shots 11 | . . 3 . . . 1 . . . . . . 1 . 1 . . . 5 Rammed . | . . . . . . . . . . . . . . . . . . . . Targets Rammed 1 | . . . . . . . . . . . . . . . . . . . 1 Kicked 1 | . . . . . . . . . . . . . . . . . . . 1 Crushed . | . . . . . . . . . . . . . . . . . . . . Highest Temperature 466 | . 136 19 251 285 84 201 . 177 . 24 . 282 297 87 225 466 354 372 340 Average Temperature 83 | . 37 7 74 80 34 41 . 44 . 15 . 135 103 50 50 113 154 155 138 Received Heat Transfer 2479 | . 225 78 135 261 . 252 . 348 . . . 12 36 . 126 250 27 54 675 Effects 8 | . . . . . . . . . . . . 1 . . . 2 1 1 3 Shutdowns 1 | . . . . . . . . . . . . . . . . . . 1 . Energy Bleed 3 | . . . . . . . . . . . . 1 . . . . . . 2 Interference 2 | . . . . . . . . . . . . . . . . 2 . . . Damage (minor) 2 | . . . . . . . . . . . . . . . . . 1 . 1 Siege Activations 1 | . . . . . . . . . . . . . . . . . . . 1 Total Turns 144 | . . . . . . . . . . . . . . . . . . . 144 Longest Duration 144 | . . . . . . . . . . . . . . . . . . . 144 Martial Activations . | . . . . . . . . . . . . . . . . . . . . Shielding Activations . | . . . . . . . . . . . . . . . . . . . . Robots Disrupted . | . . . . . . . . . . . . . . . . . . . . Combat Hostiles . | . . . . . . . . . . . . . . . . . . . . Robots Corrupted 6 | . . . . . . . . 1 . . . . 4 . . . . . 1 Combat Hostiles 5 | . . . . . . . . 1 . . . . 3 . . . . . 1 Parts Fried 18 | . . . . . . . . . . . . 1 14 . . 1 . . 2 Impact Corruptions . | . . . . . . . . . . . . . . . . . . . . Robots Melted 1 | . . . . . . . . . . . . 1 . . . . . . . Combat Hostiles 1 | . . . . . . . . . . . . 1 . . . . . . . Parts Melted 27 | . 2 1 3 . . 3 . 1 . . . 8 1 . 4 4 . . . Heat Transferred 12965 | . 1517 481 1556 814 100 655 . 500 15 250 . 703 50 . 2302 2522 148 259 1093 Parts Sabotaged . | . . . . . . . . . . . . . . . . . . . . Parts Stolen . | . . . . . . . . . . . . . . . . . . . . Parts Stripped . | . . . . . . . . . . . . . . . . . . . . Power Chain Reactions . | . . . . . . . . . . . . . . . . . . . . Alert | -11 -10 -10 -8 -8 -8 -6 -6 -6 -6 -6 -6 -5 -5 -5 -5 -5 -5 -5 -5 ------- Run | Yrd Mat Sub Mat Sto Rec Fac Was Fac Low Low Zio Pro Fac Was Fac Ext Cet Arc Hub Maximum Alert Level 5 | . . . 2 1 1 2 . 3 . . . . 3 1 3 5 3 2 3 Low Security (%) 52 | 100 100 . 57 33 99 45 100 32 . . . . 24 25 25 . . . 79 Level 1 16 | . . . 33 66 . 44 . 20 . . . . 26 74 9 . . 19 . Level 2 8 | . . . 8 . . 10 . 11 . . . . 30 . 10 5 . 80 12 Level 3 16 | . . . . . . . . 35 . . . . 19 . 54 31 100 . 7 Level 4 5 | . . . . . . . . . . . . . . . . 50 . . . Level 5 1 | . . . . . . . . . . . . . . . . 12 . . . High Security . | . . . . . . . . . . . . . . . . . . . . Max Security . | . . . . . . . . . . . . . . . . . . . . Peak Influence 1748 | . 177 . 416 391 200 598 127 948 . . . . 780 264 1000 1748 1098 492 855 Initial 963 | . . . . 148 100 400 127 . . . . . . 264 121 473 963 420 126 Average 367 | . 89 . 186 236 70 237 17 436 . . . . 423 226 578 1206 993 428 189 Influence Increases 12259 | . 562 . 710 699 389 1659 28 1542 60 110 . 433 1057 . 1391 2005 345 171 1098 Destroy 0b10 Robot/C 5300 | . 300 . 320 360 120 600 . 640 20 80 . 260 340 . 640 1040 160 80 340 Destroy 0b10 Robot/NC 565 | . 45 . 85 50 25 45 . 60 . 5 . 10 60 . 65 60 10 10 35 Destroy Leader 1134 | . 80 . 116 124 . 164 . 164 10 10 . 40 74 . 142 116 . . 94 Allied During Kill 1534 | . . . . 66 103 71 . 235 . . . 123 221 . 10 517 103 62 23 Successful Hack 287 | . 44 . 33 41 50 68 . 9 . . . . . . 29 13 . . . Select Force Hacks 120 | . . . . . 90 30 . . . . . . . . . . . . . Disable Machine 720 | . 30 . 90 45 . 120 . 60 . . . . 60 . 150 15 15 15 120 Anti-Garrison Action 700 | . . . . . . . . 200 . . . . 200 . 150 . . . 150 Destroy Structure 1094 | . 3 . 66 13 1 86 28 99 . . . . 102 . 160 154 42 4 336 Advance Influence 400 | . . . . . . 400 . . . . . . . . . . . . . Lose Combat Pursuer 405 | . 60 . . . . 75 . 75 30 15 . . . . 45 90 15 . . Influence Decreases 11455 | . 485 77 359 793 646 1294 393 602 682 357 71 433 301 582 599 1251 1015 860 655 Entered New Map 3775 | . . 37 . 203 157 . 238 . 348 61 71 . . 492 53 493 757 630 235 Time Decay 5643 | . 388 40 359 410 489 474 145 342 334 286 . 393 261 50 506 518 198 170 280 Lost Part 224 | . 4 . . 30 . 30 10 20 . 10 . . . . 20 20 . . 80 Lost Ally 1120 | . . . . . . 340 . 240 . . . 40 40 40 20 220 60 60 60 Purge Threat 693 | . 93 . . 150 . 450 . . . . . . . . . . . . . Squads Dispatched 55 | . 4 . 2 3 . 9 . 10 . . . . 4 . 9 7 . . 7 Investigation 20 | . 1 . 1 2 . 6 . 2 . . . . 2 . 3 3 . . . Extermination 7 | . . . . . . 2 . 2 . . . . 1 . 2 . . . . Reinforcement 16 | . 3 . 1 1 . 1 . 4 . . . . 1 . 1 . . . 4 Assault 9 | . . . . . . . . 1 . . . . . . 2 4 . . 2 Garrison 3 | . . . . . . . . 1 . . . . . . 1 . . . 1 Intercept . | . . . . . . . . . . . . . . . . . . . . Searches Triggered . | . . . . . . . . . . . . . . . . . . . . Construction Impeded 3 | . . . . . . 1 . 1 . . . . . . . . . . 1 Haulers Reinforced 3 | . . . . . . . . 2 . . . . 1 . . . . . . Active Scanning Responses . | . . . . . . . . . . . . . . . . . . . . Cargo Convoy Interrupts 1 | . . . . . . . . 1 . . . . . . . . . . . Stealth | -11 -10 -10 -8 -8 -8 -6 -6 -6 -6 -6 -6 -5 -5 -5 -5 -5 -5 -5 -5 --------- Run | Yrd Mat Sub Mat Sto Rec Fac Was Fac Low Low Zio Pro Fac Was Fac Ext Cet Arc Hub Distress Signals 15 | . 1 . 1 . 2 1 . 2 . . . . . . 1 2 2 . 3 Communications Jammed . | . . . . . . . . . . . . . . . . . . . . Distress Signals . | . . . . . . . . . . . . . . . . . . . . Times Spotted 405 | . 26 11 24 26 9 44 6 43 2 7 . 13 22 6 47 65 11 6 37 Peak Tracking Total 18 | . 4 2 5 4 3 8 6 5 2 3 . 5 3 6 5 7 5 2 18 Tactical Retreats 19 | . 2 . . . . 4 . 3 1 1 . . . . 3 4 1 . . Traps | -11 -10 -10 -8 -8 -8 -6 -6 -6 -6 -6 -6 -5 -5 -5 -5 -5 -5 -5 -5 ------- Run | Yrd Mat Sub Mat Sto Rec Fac Was Fac Low Low Zio Pro Fac Was Fac Ext Cet Arc Hub Traps Triggered 10 | . 1 . . 1 . 3 . 1 . . . . 1 . 2 1 . . . Indirectly . | . . . . . . . . . . . . . . . . . . . . Trap Hack Attempts . | . . . . . . . . . . . . . . . . . . . . Triggered . | . . . . . . . . . . . . . . . . . . . . Disarmed . | . . . . . . . . . . . . . . . . . . . . Reprogrammed . | . . . . . . . . . . . . . . . . . . . . Reused . | . . . . . . . . . . . . . . . . . . . . Traps Extracted . | . . . . . . . . . . . . . . . . . . . . Installed . | . . . . . . . . . . . . . . . . . . . . Triggered . | . . . . . . . . . . . . . . . . . . . . Machines | -11 -10 -10 -8 -8 -8 -6 -6 -6 -6 -6 -6 -5 -5 -5 -5 -5 -5 -5 -5 ---------- Run | Yrd Mat Sub Mat Sto Rec Fac Was Fac Low Low Zio Pro Fac Was Fac Ext Cet Arc Hub Machines Disabled 52 | . 2 1 6 3 . 8 . 4 . . . . 4 . 11 2 1 1 9 Max in Single Turn 5 | . 1 1 5 1 . 2 . 2 . . . . 3 . 4 1 1 . 3 Garrison Access 5 | . . . . . . . . 1 . . . . 1 . 2 . . . 1 Network Hub 2 | . . . . . . . . . . . . . . . . . . . 2 Machines Repaired 2 | . . . . . 2 . . . . . . . . . . . . . . Machines Dismantled . | . . . . . . . . . . . . . . . . . . . . Machines Sabotaged . | . . . . . . . . . . . . . . . . . . . . Overloaded Fab Kills . | . . . . . . . . . . . . . . . . . . . . Hacking | -11 -10 -10 -8 -8 -8 -6 -6 -6 -6 -6 -6 -5 -5 -5 -5 -5 -5 -5 -5 --------- Run | Yrd Mat Sub Mat Sto Rec Fac Was Fac Low Low Zio Pro Fac Was Fac Ext Cet Arc Hub Machines Accessed 68 | . 8 1 7 10 9 12 . 6 . . . 1 4 . 6 3 1 . . Terminals 42 | . 6 . 5 9 5 7 . 4 . . . 1 . . 1 3 1 . . Fabricators 3 | . . . . . . . . . . . . . 1 . 2 . . . . Repair Stations 5 | . 1 . 1 1 . 1 . . . . . . . . 1 . . . . Recycling Units 8 | . 1 . . . 3 1 . 1 . . . . 1 . 1 . . . . Scanalyzers 2 | . . . 1 . . 1 . . . . . . . . . . . . . Garrison Access 6 | . . . . . . 2 . 1 . . . . 2 . 1 . . . . Total Hacks 216 | . 35 1 27 26 31 42 . 16 . . . 1 12 . 15 8 2 . . Successful 108 | . 17 1 17 13 19 24 . 3 . . . 1 1 . 10 2 . . . Failed 106 | . 18 . 9 13 12 17 . 13 . . . . 11 . 5 6 2 . . Catastrophic 15 | . 2 . . 2 3 1 . 2 . . . . 1 . 1 2 1 . . Database Lockouts 2 | . . . 1 . . 1 . . . . . . . . . . . . . Manual 133 | . 23 . 8 12 9 16 . 5 . . . . 16 . 20 18 1 . 5 Terminals 141 | . 27 . 17 23 21 32 . 9 . . . 1 . . 1 8 2 . . Fabricators 12 | . . . . . . . . . . . . . 4 . 8 . . . . Repair Stations 20 | . 5 . 7 3 . 2 . . . . . . . . 3 . . . . Recycling Units 20 | . 3 . . . 7 2 . 4 . . . . 2 . 2 . . . . Scanalyzers 4 | . . . 3 . . 1 . . . . . . . . . . . . . Garrison Access 15 | . . . . . . 5 . 3 . . . . 6 . 1 . . . . Terminal Hacks 59 | . 11 1 8 9 10 15 . 1 . . . 1 . . 1 2 . . . Record 2 | . . . . . 1 . . . . . . 1 . . . . . . . Part Schematic 5 | . 1 . . . 3 1 . . . . . . . . . . . . . Robot Schematic 3 | . 1 . . . 2 . . . . . . . . . . . . . . Robot Analysis 6 | . 3 . 1 . . 1 . 1 . . . . . . . . . . . Open Door 5 | . . . . 2 . . . . . . . . . . 1 2 . . . Branch Access Points 4 | . . . 1 1 . 2 . . . . . . . . . . . . . Emergency Access Points 1 | . 1 . . . . . . . . . . . . . . . . . . Machine Index 1 | . . . . . . 1 . . . . . . . . . . . . . Terminal Index 1 | . 1 . . . . . . . . . . . . . . . . . . Alert Level 2 | . . . 1 . . 1 . . . . . . . . . . . . . Unreport Threat 6 | . 2 . . 1 . 3 . . . . . . . . . . . . . Locate Traps 8 | . 1 . 1 2 . 4 . . . . . . . . . . . . . Transport Status 1 | . . . 1 . . . . . . . . . . . . . . . . Recall Investigation 1 | . . . . 1 . . . . . . . . . . . . . . . Recall Reinforcements 2 | . 1 . . 1 . . . . . . . . . . . . . . . Hauler Manifests 3 | . . . 1 . 1 1 . . . . . . . . . . . . . Registered Components 2 | . . . 1 . . 1 . . . . . . . . . . . . . Zone Layout 3 | . . . 1 1 1 . . . . . . . . . . . . . . Proto ID Catalog 1 | . . 1 . . . . . . . . . . . . . . . . . Release Object 2 | . . . . . 2 . . . . . . . . . . . . . . Fabricator Hacks 6 | . . . . . . . . . . . . . . . 6 . . . . Load Schematic 3 | . . . . . . . . . . . . . . . 3 . . . . Build 3 | . . . . . . . . . . . . . . . 3 . . . . Repair Station Hacks 13 | . 1 . 6 2 . 2 . . . . . . . . 2 . . . . Scan Component 6 | . . . 3 1 . 1 . . . . . . . . 1 . . . . Repair 6 | . . . 3 1 . 1 . . . . . . . . 1 . . . . Refit 1 | . 1 . . . . . . . . . . . . . . . . . . Recycling Unit Hacks 4 | . . . . . 3 1 . . . . . . . . . . . . . Retrieve Components 4 | . . . . . 3 1 . . . . . . . . . . . . . Scanalyzer 1 | . . . 1 . . . . . . . . . . . . . . . . Retrieve Study 1 | . . . 1 . . . . . . . . . . . . . . . . Garrison Access Hacks 1 | . . . . . . . . . . . . . . . 1 . . . . Seal Access 1 | . . . . . . . . . . . . . . . 1 . . . . Unauthorized Hacks 24 | . 5 . 2 2 6 6 . 2 . . . . 1 . . . . . . Terminals 18 | . 5 . 2 2 3 5 . 1 . . . . . . . . . . . Botnet 16 | . 4 . 2 2 3 4 . 1 . . . . . . . . . . . Operators 2 | . 1 . . . . 1 . . . . . . . . . . . . . Fabricators . | . . . . . . . . . . . . . . . . . . . . Repair Stations . | . . . . . . . . . . . . . . . . . . . . Recycling Units 4 | . . . . . 3 1 . . . . . . . . . . . . . Tunnel 4 | . . . . . 3 1 . . . . . . . . . . . . . Scanalyzers . | . . . . . . . . . . . . . . . . . . . . Garrison Access 2 | . . . . . . . . 1 . . . . 1 . . . . . . Jam 2 | . . . . . . . . 1 . . . . 1 . . . . . . Data Cores Recovered 3 | . . . 1 . . . . 1 . . . . 1 . . . . . . Used . | . . . . . . . . . . . . . . . . . . . . Hacking Detections 58 | . 8 . 6 8 6 11 . 6 . . . 1 4 . 4 2 2 . . Full Trace Events 18 | . . . 2 2 5 4 . 1 . . . . 1 . 2 1 . . . Feedback Events 1 | . . . . . 1 . . . . . . . . . . . . . . Corruption 1 | . . . . . 1 . . . . . . . . . . . . . . Feedback Blocked . | . . . . . . . . . . . . . . . . . . . . Robot Schematics Acquired 10 | . 1 . . . 2 . . . . . 4 . . . . 3 . . . Robots Built 2 | . . . . . . . . . . . . . . . 2 . . . . Authchips . | . . . . . . . . . . . . . . . . . . . . Time 38 | . . . . . . . . . . . . . . . 38 . . . . Total Robot Build Rating 6 | . . . . . . . . . . . . . . . 6 . . . . Part Schematics Acquired 62 | . 1 . . . 3 1 . . . . 14 . 21 . 14 8 . . . Parts Built 2 | . . . . . . . . . . . . . . . 2 . . . . Authchips 2 | . . . . . . . . . . . . . . . 2 . . . . Time 112 | . . . . . . . . . . . . . . . 112 . . . . Total Part Build Rating 12 | . . . . . . . . . . . . . . . 12 . . . . Part Studies Acquired 1 | . . . 1 . . . . . . . . . . . . . . . . Parts Repaired 6 | . . . 3 1 . 1 . . . . . . . . 1 . . . . Time 257 | . . . 96 44 . 22 . . . . . . . . 95 . . . . Parts Recycled . | . . . . . . . . . . . . . . . . . . . . Recycled Matter . | . . . . . . . . . . . . . . . . . . . . Retrieved Matter . | . . . . . . . . . . . . . . . . . . . . Retrieved Components 13 | . . . . . 10 3 . . . . . . . . . . . . . Parts Scanalyzed . | . . . . . . . . . . . . . . . . . . . . Part Schematics Acquired . | . . . . . . . . . . . . . . . . . . . . Parts Damaged . | . . . . . . . . . . . . . . . . . . . . Bothacking | -11 -10 -10 -8 -8 -8 -6 -6 -6 -6 -6 -6 -5 -5 -5 -5 -5 -5 -5 -5 ------------ Run | Yrd Mat Sub Mat Sto Rec Fac Was Fac Low Low Zio Pro Fac Was Fac Ext Cet Arc Hub Used RIF Installer . | . . . . . . . . . . . . . . . . . . . . Robots Hacked . | . . . . . . . . . . . . . . . . . . . . Non-combat . | . . . . . . . . . . . . . . . . . . . . Combat . | . . . . . . . . . . . . . . . . . . . . Robot Hacks Applied . | . . . . . . . . . . . . . . . . . . . . Relay Couplers Released 7 | . . . . . . . . 3 . . . . . . 2 . . . 2 Machine Destruction 7 | . . . . . . . . 3 . . . . . . 2 . . . 2 Fabnet Peak Effective % . | . . . . . . . . . . . . . . . . . . . . Robots Rewired 18 | . . . . . 7 . . . . . . . . . . 11 . . . Allies Hacked 4 | . . . . . . . . 3 . . . . 1 . . . . . . Hacks Repelled . | . . . . . . . . . . . . . . . . . . . . Allies | -11 -10 -10 -8 -8 -8 -6 -6 -6 -6 -6 -6 -5 -5 -5 -5 -5 -5 -5 -5 -------- Run | Yrd Mat Sub Mat Sto Rec Fac Was Fac Low Low Zio Pro Fac Was Fac Ext Cet Arc Hub Total Allies 70 | . . . . 10 7 . 18 . . . 6 . 3 1 2 16 5 . 2 Largest Group 18 | . . . . 10 17 17 18 17 . . 6 6 7 2 2 11 6 6 4 Highest-Rated Group 656 | . . . . 173 281 281 656 630 . . 209 209 303 70 42 383 639 605 362 Highest-Rated Ally 159 | . . . . 29 29 29 50 50 . . 39 39 51 39 21 159 159 153 96 Zionite Dispatches 3 | . . . . . . . . . . . . . 1 . . 1 . . 1 Heavy 2 | . . . . . . . . . . . . . . . . 1 . . 1 Hacker 1 | . . . . . . . . . . . . . 1 . . . . . . Total Orders . | . . . . . . . . . . . . . . . . . . . . Ally Attacks 732 | . . . . 3 36 49 60 129 . . . 33 87 7 31 183 56 43 15 Total Damage 19370 | . . . . 14 430 573 2744 3223 . . . 743 2025 106 340 4765 2075 1641 691 Kills 94 | . . . . . 5 3 7 12 . . . 10 11 . 3 29 7 3 4 Allies Corrupted 5 | . . . . . . . . 1 . . . 1 . 1 . 1 . . 1 Allies Melted 1 | . . . . . . . . 1 . . . . . . . . . . . Intel | -11 -10 -10 -8 -8 -8 -6 -6 -6 -6 -6 -6 -5 -5 -5 -5 -5 -5 -5 -5 ------- Run | Yrd Mat Sub Mat Sto Rec Fac Was Fac Low Low Zio Pro Fac Was Fac Ext Cet Arc Hub Active Infowar (turns) 5070 | . . . . 342 . . . 131 745 635 968 1092 492 . 645 . . . 20 Sensors 5070 | . . . . 342 . . . 131 745 635 968 1092 492 . 645 . . . 20 Robot Analysis Total 6 | . 3 . 1 . . 1 . 1 . . . . . . . . . . . Derelict Logs Recovered 6 | . . 1 . . . . . . 1 1 2 1 . . . . . . . Drone Launches . | . . . . . . . . . . . . . . . . . . . . Drone Recoveries . | . . . . . . . . . . . . . . . . . . . . Zionite Intel Received 12 | . . . . . . . . . . . . . 3 . 5 4 . . . Branch Access 1 | . . . . . . . . . . . . . . . 1 . . . . Emergency Access 3 | . . . . . . . . . . . . . 1 . 1 1 . . . Guard Positions 1 | . . . . . . . . . . . . . . . 1 . . . . Prototype Stockpiles 1 | . . . . . . . . . . . . . . . . 1 . . . Component Schematics 2 | . . . . . . . . . . . . . 1 . 1 . . . . Prototype Schematics 2 | . . . . . . . . . . . . . 1 . . 1 . . . Unaware Schematics 1 | . . . . . . . . . . . . . . . . 1 . . . Trap Installations 1 | . . . . . . . . . . . . . . . 1 . . . . Exploration | -11 -10 -10 -8 -8 -8 -6 -6 -6 -6 -6 -6 -5 -5 -5 -5 -5 -5 -5 -5 ------------- Run | Yrd Mat Sub Mat Sto Rec Fac Was Fac Low Low Zio Pro Fac Was Fac Ext Cet Arc Hub Turns Passed 18316 | 54 1123 1306 962 985 1939 1205 1137 1224 745 635 968 1092 652 110 1360 1438 407 348 626 Spaces Moved 14742 | 45 822 1162 627 644 1216 842 492 1070 864 760 1092 1183 722 150 1468 1046 215 104 218 Core 14 | 1 . . . . . . . . . . . . . . . . . . 13 Treads 3736 | . . . . . . . . . . 453 1092 1183 233 . . 483 215 37 40 Legs 2224 | . . . . . 67 637 278 874 . . . . 47 . 39 50 . 67 165 Wheels 4653 | 44 822 1162 627 644 1149 205 . . . . . . . . . . . . . Hover 2754 | . . . . . . . 214 196 864 307 . . 442 150 581 . . . . Flight 1361 | . . . . . . . . . . . . . . . 848 513 . . . Fastest Speed 50 | 50 85 90 83 83 105 90 84 84 73 73 73 73 67 67 57 57 104 185 50 Average Speed 89 | 98 91 98 96 101 124 107 84 86 83 73 73 73 69 67 65 77 147 185 177 Slowest Speed 250 | 100 115 120 106 120 250 139 84 96 96 73 73 73 73 67 85 104 185 185 185 Overloaded Moves . | . . . . . . . . . . . . . . . . . . . . Propulsion Burnouts . | . . . . . . . . . . . . . . . . . . . . Robots Hopped 6 | . . . . . . . . . . . . . . . . 6 . . . Potential Cave-ins . | . . . . . . . . . . . . . . . . . . . . Cave-ins Triggered . | . . . . . . . . . . . . . . . . . . . . Exploration Rate (%) 65 | 3 99 60 53 94 99 22 97 24 80 87 90 96 19 89 31 98 66 79 24 Regions Visited 19 Branch Regions 11 Pre-discovered Areas 5 | . . . . . 3 1 . . . . 1 . . . . . . . . Known Exits Taken 8 | . . . 1 1 . . . 1 1 1 1 1 . . 1 . . . . Unknown Exits Taken 7 | 1 1 1 . . 1 . . . . . . . . . . 1 1 1 . Scrap Searched 16 | . . 4 . . . . . . 2 4 2 4 . . . . . . . Spaces Dug 54 | . . . . . 1 . . 1 . . . . . . 52 . . . . Terrain Destroyed 949 | . . 126 89 10 1 95 13 74 1 64 . . 42 . 87 56 5 1 285 Melee 1 | . . . . . 1 . . . . . . . . . . . . . . Projectile 207 | . . . 1 . . 24 . 23 1 64 . . . . 30 56 5 1 2 AOE 741 | . . 126 88 10 . 71 13 51 . . . . 42 . 57 . . . 283 Terrain Rammed . | . . . . . . . . . . . . . . . . . . . . Walls Destroyed . | . . . . . . . . . . . . . . . . . . . . Machines Disabled . | . . . . . . . . . . . . . . . . . . . . Actions | -11 -10 -10 -8 -8 -8 -6 -6 -6 -6 -6 -6 -5 -5 -5 -5 -5 -5 -5 -5 --------- Run | Yrd Mat Sub Mat Sto Rec Fac Was Fac Low Low Zio Pro Fac Was Fac Ext Cet Arc Hub Total 18995 | 51 1065 1270 868 857 1630 1033 1218 1302 887 820 1262 1404 854 161 1799 1586 290 251 387 Wait 2818 | . 106 23 111 72 320 59 714 117 18 39 161 215 89 5 226 291 56 120 76 Move 14715 | 44 821 1161 626 643 1215 842 491 1069 863 759 1091 1182 722 149 1467 1035 214 103 218 Hop 4 | . . . . . . . . . . . . . . . . 4 . . . Pick Up 113 | 1 19 7 16 18 5 10 2 9 . 1 4 . 5 2 9 . 1 3 1 Fast Attach 89 | 6 8 5 14 17 1 1 1 7 . . 1 . 4 . 6 7 1 5 5 Attach 50 | . 3 3 5 6 1 6 . 6 . . 1 . . 1 6 . . . 12 Detach 24 | . 2 1 2 4 2 . . 5 . . 2 . . . 2 . . 1 3 Swap 74 | . 13 11 13 13 3 1 . 2 . . . . 3 . 3 7 . . 5 Drop 198 | . 24 15 23 28 13 7 9 15 4 1 1 . 9 4 7 12 2 8 16 Fire 703 | . 69 43 58 54 11 107 1 71 2 20 . 7 22 . 73 88 16 11 50 Melee 4 | . . . . 2 1 . . . . . 1 . . . . . . . . Ram . | . . . . . . . . . . . . . . . . . . . . Kick 1 | . . . . . . . . . . . . . . . . . . . 1 Crush . | . . . . . . . . . . . . . . . . . . . . Escape Stasis . | . . . . . . . . . . . . . . . . . . . . Rewire 200 | . . 1 . . 56 . . 1 . . . . . . . 142 . . . Trap . | . . . . . . . . . . . . . . . . . . . . Miscellaneous 2 | . . . . . 2 . . . . . . . . . . . . . . Route ------- -11/Scrapyard -10/Materials (discovered 6 exits: [*Mat x3] / [*Min x2] / *Sub) -10/Subcaves -8/Materials (discovered 2 exits: [*Fac] / *Sto) -8/Storage (discovered 2 exits: [*Fac] / *Rec) -8/Recycling -6/Factory (discovered 2 exits: Low x2) -6/Waste -6/Factory (discovered 2 exits: *Fac / *Low) -6/Lower Caves (discovered 2 exits: *Low / *Zio) -6/Lower Caves (discovered 2 exits: *Fac / *Zio) -6/Zion (discovered 2 exits: Dee / *Pro) -5/Proximity Caves -5/Factory (discovered 2 exits: *Upp / Ext) -5/Waste -5/Factory (discovered 6 exits: [*Fac x2] / Upp x2 / *Ext x2) -5/Extension (discovered 2 exits: [*Fac] / *Cet) -5/Cetus (discovered 2 exits: [*Fac] / [*Arc]) -5/Archives (discovered 2 exits: *Hub x2) -5/Hub_04(d) History --------- Turn | Location | Event 21 | -11/Scrapyard | Discovered new exit (range 16) 55 | -11/Scrapyard | Entered Materials 274 | -10/Materials | Discovered new exit (range 14) 313 | -10/Materials | Build established: Mutant 399 | -10/Materials | Discovered new exit (range 6) 634 | -10/Materials | Discovered new exit (range 15) 703 | -10/Materials | Discovered new exit (range 10) 1099 | -10/Materials | Discovered new exit (range 6) 1168 | -10/Materials | Discovered new exit (range 6) 1178 | -10/Materials | Entered Subcaves 1179 | -10/Subcaves | Approached by a straggling Scientist 1293 | -10/Subcaves | Shifting Twisted Machinery released Sub. Shrapnel Launcher 1295 | -10/Subcaves | Shifting Twisted Machinery released Ripper 1425 | -10/Subcaves | Core integrity fell below 50% 1627 | -10/Subcaves | Shifting Twisted Machinery released Sub. Laser 1674 | -10/Subcaves | Shifting Twisted Machinery released Sub. Shrapnel Launcher 1737 | -10/Subcaves | Build established: Scavenger-Mutant 1768 | -10/Subcaves | Learned Materials interactive machine intel 1869 | -10/Subcaves | A swath of the cavern ceiling suddenly collapsed 2087 | -10/Subcaves | Build established: Mutant 2118 | -10/Subcaves | Discovered new exit (range 12) 2159 | -10/Subcaves | Shifting Twisted Machinery released Scrap Shield 2161 | -10/Subcaves | Shifting Twisted Machinery released Flamer 2218 | -10/Subcaves | Visited 4L-MR0's lab 2233 | -10/Subcaves | Found Gun Armor 2484 | -10/Subcaves | Entered Materials 2484 | -8/Materials | Evolved 4 slots: Propulsion x1, Utility x2, Weapon x1 2485 | -8/Materials | Loaded intel: 19 interactive machine locations 2706 | -8/Materials | Identified exit to Storage 2755 | -8/Materials | Discovered new exit (range 3) 2817 | -8/Materials | Central database locked down 3071 | -8/Materials | Build established: Hacker-Tank 3251 | -8/Materials | Repaired Sub. Shrapnel Launcher? 3291 | -8/Materials | Repaired Arm. Wheel 3324 | -8/Materials | Repaired Sub. Shrapnel Launcher 3446 | -8/Materials | Entered Storage 3468 | -8/Storage | Identified exit to Recycling 3777 | -8/Storage | Build established: Tank 3844 | -8/Storage | Repaired Mak. Light Armor Plating? 4150 | -8/Storage | Assisted by bots powering up and referring to "LRC-V3" 4159 | -8/Storage | Discovered new exit (range 16) 4209 | -8/Storage | Met 01-MTF 4404 | -8/Storage | Used back door to open Recycling access 4431 | -8/Storage | Entered Recycling 4431 | -8/Recycling | Accompanied by 11 allies (01-MTF) 4453 | -8/Recycling | Build established: Commander-Tank 4944 | -8/Recycling | Discovered new exit (range 19) 5211 | -8/Recycling | Entered Scraplab 5215 | -8/Recycling | Found Prototype Device 5215 | -8/Recycling | Identified Scrap Engine 5670 | -8/Recycling | Build established: Commander-Construct 6370 | -8/Recycling | Entered Factory 6370 | -6/Factory | Accompanied by 17 allies 6370 | -6/Factory | Evolved 4 slots: Propulsion x2, Utility x2 6563 | -6/Factory | Central database locked down 6569 | -6/Factory | Lost 10 allies 6582 | -6/Factory | Identified exit to Lower Caves 6795 | -6/Factory | Lost 5 allies 6862 | -6/Factory | Repaired Mak. Light Armor Plating 7047 | -6/Factory | Build established: Hacker-Construct 7345 | -6/Factory | Attached Gun Armor, gained temporary slots: Weapon x2 7430 | -6/Factory | Spotted B-75 Beast 7575 | -6/Factory | Sucked down chute 7575 | -6/Factory | Entered Waste 7634 | -6/Waste | Spotted C-40 Crusher 7646 | -6/Waste | Spotted C-40 Crusher 7656 | -6/Waste | Spotted C-40 Crusher 7659 | -6/Waste | Spotted C-40 Crusher 7689 | -6/Waste | Spotted C-40 Crusher 7697 | -6/Waste | Spotted C-40 Crusher 7713 | -6/Waste | Crushed by Compactor (1 part destroyed, 1 dropped) 7743 | -6/Waste | Warlord forces began an assault 7818 | -6/Waste | Build established: Construct 8570 | -6/Waste | Found Damper Plating 8652 | -6/Waste | Discovered new exit (range 12) 8712 | -6/Waste | Entered Factory 8712 | -6/Factory | Accompanied by 17 allies 9023 | -6/Factory | Lost 3 allies 9040 | -6/Factory | Discovered exit to Lower Caves (range 16) 9068 | -6/Factory | Spotted B-75 Beast 9097 | -6/Factory | Allies destroyed B-75 Beast 9123 | -6/Factory | Lost 8 allies 9431 | -6/Factory | Lost 4 allies 9454 | -6/Factory | Garrison activated, responded to threat 9503 | -6/Factory | Destroyed 8 combat bots 9619 | -6/Factory | Cargo convoy interrupted 9681 | -6/Factory | Discovered new exit (range 10) 9721 | -6/Factory | Core integrity fell below 50% 9762 | -6/Factory | First assault squad dispatched 9936 | -6/Factory | Entered Lower Caves 10323 | -6/Lower Caves | A Derelict revealed a hidden shortcut to a safe place 10331 | -6/Lower Caves | Identified exit to Zion 10406 | -6/Lower Caves | Discovered new exit (range 6) 10417 | -6/Lower Caves | Identified exit to Lower Caves 10428 | -6/Lower Caves | Learned Factory interactive machine intel 10681 | -6/Lower Caves | Entered another Lower Caves area 10726 | -6/Lower Caves | Discovered new exit (range 7) 10730 | -6/Lower Caves | Identified exit to Factory 10791 | -6/Lower Caves | Encountered a Warlord checkpoint 10904 | -6/Lower Caves | Lost 3 allies 11070 | -6/Lower Caves | Spotted B-75 Beast 11207 | -6/Lower Caves | Discovered exit to Zion (range 15) 11316 | -6/Lower Caves | Entered Zion 11330 | -6/Zion | Given A8's code to call for help 11371 | -6/Zion | Discovered new exit (range 9) 11384 | -6/Zion | Gained Derelict followers 11580 | -6/Zion | Found CR-A16's Pointy Stick 11615 | -6/Zion | Identified exit to Deep Caves 11660 | -6/Zion | Found Prototype Special Weapon 11660 | -6/Zion | Identified RU-N14's Throwing Claymores 11662 | -6/Zion | Found RU-N14's Throwing Claymores 11664 | -6/Zion | Found RU-N14's Throwing Claymores 11666 | -6/Zion | Found RU-N14's Throwing Claymores 11801 | -6/Zion | Learned location of Quarantine (-2) 11976 | -6/Zion | Met Imprinter 11989 | -6/Zion | Imprinted 11991 | -6/Zion | Declared Zion's savior 12202 | -6/Zion | Identified exit to Proximity Caves 12284 | -6/Zion | Entered Proximity Caves 12284 | -5/Proximity Caves | Accompanied by 6 allies 12302 | -5/Proximity Caves | Learned location of 1 exit from Factory 12661 | -5/Proximity Caves | Discovered exit to Factory (range 14) 13376 | -5/Proximity Caves | Entered Factory 13376 | -5/Factory | Accompanied by 4 allies 13376 | -5/Factory | Evolved 2 slots: Propulsion x1, Utility x1 13377 | -5/Factory | Identified exit to Upper Caves 13378 | -5/Factory | Identified exit to Extension 13379 | -5/Factory | Loaded intel: 55 interactive machine locations 13412 | -5/Factory | Retrieved Zion intel report: Emergency Access 13472 | -5/Factory | Retrieved Zion intel report: Prototype Schematics 13545 | -5/Factory | Zion Hacker squad teleported in 13783 | -5/Factory | Retrieved Zion intel report: Component Schematics 14028 | -5/Factory | Sucked down chute 14028 | -5/Factory | Entered Waste 14029 | -5/Waste | Met a frightened Derelict 14043 | -5/Waste | EMP discharged 14067 | -5/Waste | Spotted C-40 Crusher 14069 | -5/Waste | Spotted C-40 Crusher 14078 | -5/Waste | 2 allies followed down the chute 14085 | -5/Waste | Spotted C-40 Crusher 14086 | -5/Waste | Spotted C-40 Crusher 14095 | -5/Waste | Spotted C-40 Crusher 14113 | -5/Waste | Spotted C-40 Crusher 14127 | -5/Waste | Discovered new exit (range 10) 14138 | -5/Waste | Entered Factory 14236 | -5/Factory | Found Prototype Processor 14236 | -5/Factory | Identified Exp. Targeting Computer 14301 | -5/Factory | Repaired Broken Adv. Corruption Screen? 14307 | -5/Factory | Discovered exit to Extension (range 8) 14387 | -5/Factory | Retrieved Zion intel report: Branch Access 14391 | -5/Factory | Retrieved Zion intel report: Component Schematics 14570 | -5/Factory | Garrison activated, responded to threat 14799 | -5/Factory | Retrieved Zion intel report: Emergency Access 14806 | -5/Factory | Retrieved Zion intel report: Guard Positions 14880 | -5/Factory | Discovered new exit (range 16) 14939 | -5/Factory | Fabricated Neutron Cannon (x1) 14999 | -5/Factory | Fabricated Hvy. Gatling Laser (x1) 15038 | -5/Factory | Fabricated H-55 Commando? 15154 | -5/Factory | Retrieved Zion intel report: Trap Installations 15224 | -5/Factory | Discovered new exit (range 15) 15383 | -5/Factory | Terminal network hard line cut 15498 | -5/Factory | Entered Extension 15556 | -5/Extension | Zion Heavy squad teleported in 15590 | -5/Extension | Found Prototype Protection 15590 | -5/Extension | Identified Zio. Weapon Casing 15646 | -5/Extension | Retrieved Zion intel report: Prototype Schematics 15653 | -5/Extension | Rescued a captive Derelict 15655 | -5/Extension | Rescued a captive Derelict 15798 | -5/Extension | First assault squad dispatched 15877 | -5/Extension | Build established: Commander-Construct 15989 | -5/Extension | Spotted B-75 Beast 16013 | -5/Extension | Allies destroyed B-75 Beast 16016 | -5/Extension | Spotted B-75 Beast 16032 | -5/Extension | Destroyed B-75 Beast 16275 | -5/Extension | Retrieved Zion intel report: Unaware Schematics 16276 | -5/Extension | Retrieved Zion intel report: Prototype Stockpiles 16279 | -5/Extension | Lost 6 allies 16516 | -5/Extension | Lost 5 allies 16529 | -5/Extension | Retrieved Zion intel report: Emergency Access 16566 | -5/Extension | Discovered new exit (range 10) 16567 | -5/Extension | Discovered new exit (range 6) 16727 | -5/Extension | Rescued A7 16752 | -5/Extension | Build established: Scavenger-Construct 16895 | -5/Extension | Terminal network hard line cut 16936 | -5/Extension | Entered Cetus 16936 | -5/Cetus | Accompanied by 4 allies (A7) 16941 | -5/Cetus | Acquired a Cetus Manufacturing Module code from A7 16951 | -5/Cetus | Spotted Cetus Guard 16952 | -5/Cetus | Spotted Cetus Guard 16954 | -5/Cetus | Destroyed Cetus Guard 16954 | -5/Cetus | Spotted Cetus Guard 16962 | -5/Cetus | Spotted Cetus Guard 16967 | -5/Cetus | Destroyed Cetus Guard 16983 | -5/Cetus | Allies destroyed Cetus Guard 16988 | -5/Cetus | Allies destroyed Cetus Guard 17013 | -5/Cetus | Lost 3 allies 17032 | -5/Cetus | Started Cetus Manufacturing Module 17041 | -5/Cetus | Escorted A7 to Cetus Mainframe 17057 | -5/Cetus | Manufactured an Enhanced Grunt 17082 | -5/Cetus | Manufactured an Enhanced Grunt 17107 | -5/Cetus | Manufactured an Enhanced Grunt 17132 | -5/Cetus | Manufactured an Enhanced Grunt 17157 | -5/Cetus | Manufactured an Enhanced Grunt 17176 | -5/Cetus | Discovered new exit (range 15) 17210 | -5/Cetus | Spotted Cetus Guard 17210 | -5/Cetus | Spotted Cetus Guard 17215 | -5/Cetus | Spotted Cetus Guard 17225 | -5/Cetus | Spotted Cetus Guard 17231 | -5/Cetus | Allies destroyed Cetus Guard 17233 | -5/Cetus | Allies destroyed Cetus Guard 17236 | -5/Cetus | Allies destroyed Cetus Guard 17239 | -5/Cetus | Destroyed Cetus Guard 17250 | -5/Cetus | Discovered new exit (range 16) 17261 | -5/Cetus | Scared off Revision 17 17343 | -5/Cetus | Entered Archives 17343 | -5/Archives | Accompanied by 6 allies (A7) 17348 | -5/Archives | Received a hacking code to weaken MAIN.C 17417 | -5/Archives | Lost 3 allies 17423 | -5/Archives | Discovered new exit (range 16) 17660 | -5/Archives | Discovered new exit (range 15) 17691 | -5/Archives | Entered Hub_04(d) 17691 | -5/Hub_04(d) | Accompanied by 2 allies 17759 | -5/Hub_04(d) | Zion Heavy squad teleported in 18073 | -5/Hub_04(d) | Network Hub disabled 18089 | -5/Hub_04(d) | Spotted Lightning 18139 | -5/Hub_04(d) | Spotted Lightning 18143 | -5/Hub_04(d) | Spotted Lightning 18145 | -5/Hub_04(d) | Spotted Lightning 18164 | -5/Hub_04(d) | Garrison activated, responded to threat 18185 | -5/Hub_04(d) | Destroyed Lightning 18188 | -5/Hub_04(d) | Destroyed Lightning 18193 | -5/Hub_04(d) | Network Hub disabled 18216 | -5/Hub_04(d) | Destroyed 9 combat bots 18242 | -5/Hub_04(d) | Destroyed Lightning 18269 | -5/Hub_04(d) | Spotted Lightning 18270 | -5/Hub_04(d) | Spotted Lightning 18271 | -5/Hub_04(d) | Spotted Lightning 18278 | -5/Hub_04(d) | System corruption reached 10% 18292 | -5/Hub_04(d) | Core integrity fell below 50% 18293 | -5/Hub_04(d) | Spotted Lightning 18310 | -5/Hub_04(d) | Core integrity fell below 20% 18317 | -5/Hub_04(d) | Destroyed by Y-64 Sentinel with KE Penetrator Last Messages --------------- destabilization (-7). 18306_ Penetrated by EMDS Slug. 18307_ Discarded Adv. System Restoration Module. 18308_ The unstable cave ceiling collapses. 18308_ Acquired 18 matter. 18309_ Penetrated by EMDS Slug. 18309_ Penetrated by Slug. 18310_ Scrap Engine destroyed. 18311_ Penetrated by Slug. 18312_ Penetrated by EMDS Slug. 18312_ Acquired 12 matter. 18312_ Adv. Sensor Array destroyed. 18313_ Acquired Lyr. Medium Armor Plating. 18313_ U-05 Engineer lays Concrete. 18313_ Penetrated by Slug. 18314_ U-05 Engineer lays Concrete. 18315_ Slug penetrates G-50 Soldier. 18316_ U-05 Engineer builds a Wall. 18317_ System corrupted: Heat flow error (+205). 18317_ Penetrated by Slug. Map ----- +----------------------------------------------------+ | ???????? ????? ??????????############# ###???? | | ?????? ???? ??????????? + #???? | | ???? ???# #????????????## """"%"""" #???? | | ???? ???# ##???????????## """" """" #???? | | ??? # #### ##??????###??## """" """" #???? | | ??# " ###????# ??## !%"""%"""" #???? | | ?? # ???## #???##!= % #???? | | ??? ##### #??####%[ ! """" #???? | | ????# # ### ## ! """" #???? | | ????# # #??# "" """" #???? | | ????# ;; #??# "T """" #??## | | ????## !% ; #### "" % #?# | | ????# # %% ; ## %! #?# # | | # /g! ###########+##### # | | """ # # !!* ######## # | | " # [!%! # " # # | | ? " % # + # | | ? # g u # | | ??# # % ######### """" | | ?? # ;; # """" | | ?? # """" #### | | ???# ""###" # """" #??? | | ??? " # ! = # #??? | | ???? ; g i!%!;[; #??? | | ???? " # % !; % #??? | | ?????? " ## @ ; [ #??? | | ??????? " ?# ; ;;;;;;;;;;;;;;## #### | | ???????? "??# ; ; ####???# # | | ?????????????# ; ;; #??????# + " | | ?????????????# ; ! ;; #??????# # " | | ?????????????# ; |;; ;#?????# # " | | ?????????????# ;;;;;;;;;;;;; ;#?????# + | | ?????????????## ; ##?????# # " | | ??????????????# #####;;;####### # " | | ??????????????# #############????# ! # # " | | ??????????????##?????????????????# # # | | ?????????????????????????????????# # #### | | ?????????????????????????????????# # #??? | | ?????????????????????????????????# + #??? | | ?????????????????????????????????# """" # #??? | | ?????????????????????????????????# """" # #??? | | ?????????????????????????????????# """" # #??? | | ?????????????????????????????????# """" # #??? | | ?????????????????????????????????########## #??? | | ??????????????????????????????????????????# #??? | | ??????????????????????????????????????????# #??? | | ??????????????????????????????????????????# #??? | | ??????????????????????????????????????????#####??? | | ?????????????????????????????????????????????????? | | ?????????????????????????????????????????????????? | +----------------------------------------------------+ Best States ------------- Heat Dissipation 113 Energy Generation 33 Energy Capacity 560 Matter Stores 300 Matter Capacity 300 Sight Range 16 Robot Scan Range 16 Terrain Scan Density 10 Additional Mass Support 9 Armor Coverage 3200 Resistance: EM 90 Weapon Shielding 33 Evasion (%) 60 Targeting Accuracy 12 Recoil Reduction 6 Energy Filtering 50 Offensive Hacking 20 Authchip Count 3 Item Schematics ----------------- Lrg. Storage Unit | -10/Materials | Hacked Arm. Leg | -8/Recycling | Hacked Recoil Stabilizer | -8/Recycling | Hacked Lyr. Light Armor Plating | -8/Recycling | Hacked Hyp. Gauss Rifle | -6/Factory | Hacked Magnetic Acceleration Cannon | -6/Zion | Archive Tesla Rifle | -6/Zion | Archive Imp. Thermal Shield | -6/Zion | Archive Thermal Shield | -6/Zion | Archive Lance | -6/Zion | Archive Power Amplifier | -6/Zion | Archive Adv. Coolant Injector | -6/Zion | Archive Antimatter Reactor | -6/Zion | Archive Adv. Recoil Stabilizer | -6/Zion | Archive Lgt. Fission Core | -6/Zion | Archive Adv. Drone Bay | -6/Zion | Archive Flexi-carbon Leg | -6/Zion | Archive Imp. Core Shielding | -6/Zion | Archive Neutrino Core | -6/Zion | Archive Imp. Thermal Defense Suite | -5/Factory | Z-intel Cld. Fission Core | -5/Factory | Z-intel Neutron Cannon | -5/Factory | Z-intel Prc. Matter Filter | -5/Factory | Z-intel Enh. Force Rifle | -5/Factory | Z-intel Imp. Heavy Laser | -5/Factory | Z-intel Kinetic Spear | -5/Factory | Z-intel Hvy. Gatling Laser | -5/Factory | Z-intel Exp. Cesium-ion Thruster | -5/Factory | Z-intel Adv. Trap Extractor | -5/Factory | Z-intel Enh. Gauss Cannon | -5/Factory | Z-intel Antigrav System | -5/Factory | Z-intel Force Field | -5/Factory | Z-intel Imp. Cryofiber Web | -5/Factory | Z-intel Salvage Targeting Computer | -5/Factory | Z-intel Imp. Datajack | -5/Factory | Z-intel Adv. Melee Analysis Suite | -5/Factory | Z-intel Adv. Heat Sink | -5/Factory | Z-intel Lyr. Medium Armor Plating | -5/Factory | Z-intel Imp. Coolant Injector | -5/Factory | Z-intel Component Analysis Suite | -5/Factory | Z-intel Adv. Targeting Computer | -5/Factory | Z-intel Imp. Launcher Guidance Computer | -5/Factory | Z-intel Angular Momentum Engine | -5/Factory | Z-intel Energy Filter | -5/Factory | Z-intel Com. Matter Pod | -5/Factory | Z-intel Imp. Proton Missile Launcher | -5/Factory | Z-intel Imp. Shock Absorption System | -5/Factory | Z-intel Imp. Particle Charger | -5/Factory | Z-intel Imp. Medium Treads | -5/Factory | Z-intel Hrd. Medium Armor Plating | -5/Factory | Z-intel Arm. Huge Wheel | -5/Factory | Z-intel Hrd. Light Armor Plating | -5/Factory | Z-intel Hyp. Gauss Cannon | -5/Factory | Z-intel Adv. Sensor Array | -5/Factory | Z-intel Exp. Targeting Computer | -5/Extension | Z-intel Enh. Fission Core | -5/Extension | Z-intel Thunder Hammer | -5/Extension | Z-intel Gui. EMP Blaster | -5/Extension | Z-intel Shock Maul | -5/Extension | Z-intel Imp. Energy Well | -5/Extension | Z-intel Multireflex Exoskeleton | -5/Extension | Z-intel Cld. Gravmag System | -5/Extension | Z-intel Robot Schematics ------------------ M-13 Machinist | -10/Materials | Hacked M-28 Smith | -8/Recycling | Hacked H-55 Commando | -8/Recycling | Hacked R-06 Scavenger | -6/Zion | Archive D-83 Annihilator | -6/Zion | Archive A-15 Conveyor | -6/Zion | Archive B-48 Gladiator | -6/Zion | Archive C-35 Carver | -5/Extension | Z-intel G-50 Soldier | -5/Extension | Z-intel K-01 Serf | -5/Extension | Z-intel Fabricated ------------ Neutron Cannon | x1 | -5/Factory | Authchip Hvy. Gatling Laser | x1 | -5/Factory | Authchip H-55 Commando | x2 | -5/Factory Repaired ---------- Sub. Shrapnel Launcher | 22% | -8/Materials Arm. Wheel | 30% | -8/Materials Sub. Shrapnel Launcher | 72% | -8/Materials Mak. Light Armor Plating | 68% | -8/Storage Mak. Light Armor Plating | 61% | -6/Factory Adv. Corruption Screen | 17% | -5/Factory | Broken Studied --------- Wheel | -8/Materials | Hacked Alien Tech Used ----------------- None Achievements -------------- Fixer-Upper Challenges ------------ None Game ------ Seed GatlingRecoilTerrabomb Manual? 0 Play Time 03:23:46 Cumulative 358.2 hours Start 2025.12.31 @ 17:07:04 End 2026.01.01 @ 00:06:22 Sessions 3 Manual Loads 0 Difficulty Rogue Special Mode None Game No. 126 Rogue 126 Adventurer 0 Explorer 0 Win Type - Total 7 Types 5/0/0/0/0/0/0/1/0/1 Lore% 79 Gallery% 76 Achievement% 65 Wizard Run 0 Options --------- Layout 1 ASCII 0 Keyboard 0 Movement Mouse Keybinds 0 Fullscreen 2 Font 32/SmallcapsGlow Map View 50x35 Zoom Use 0% Tactical HUD 1 Map Filters NONE Filters NONE Steam 1 RUN: b616f816-22af-4f8f-a5cb-e3446e7dc56c